[Event "*** SCC Grand Prix: Titled Tuesday Blitz"]
[Site "Chess.com"]
[Date "2020.10.13"]
[Round "6"]
[White "chenxiaoyuer"]
[Black "Rozum_Ivan"]
[Result "0-1"]
[WhiteElo "2534"]
[BlackElo "2747"]
[TimeControl "180+1"]
[EndTime "11:05:57 PDT"]
[Termination "Rozum_Ivan won by resignation"]

1. e4 {[%clk 0:03:00.9]} 1... d6 {[%clk 0:02:59.6]} 2. d4 {[%clk 0:03:00.7]}
2... Nf6 {[%clk 0:03:00]} 3. Nc3 {[%clk 0:03:00.1]} 3... e5 {[%clk 0:03:00.6]}
4. Nf3 {[%clk 0:02:59.3]} 4... exd4 {[%clk 0:03:00.7]} 5. Nxd4 {[%clk
0:02:58.7]} 5... g6 {[%clk 0:02:59.7]} 6. f3 {[%clk 0:02:56.7]} 6... Bg7 {[%clk
0:03:00]} 7. Be3 {[%clk 0:02:56.4]} 7... c6 {[%clk 0:03:00.4]} 8. Qd2 {[%clk
0:02:55]} 8... d5 {[%clk 0:03:00]} 9. O-O-O {[%clk 0:02:33.3]} 9... O-O {[%clk
0:02:59]} 10. Nb3 {[%clk 0:02:18.6]} 10... Be6 {[%clk 0:02:56.3]} 11. exd5
{[%clk 0:02:07.8]} 11... Nxd5 {[%clk 0:02:57.2]} 12. Nxd5 {[%clk 0:01:59.8]}
12... Qxd5 {[%clk 0:02:58.1]} 13. Qxd5 {[%clk 0:01:54.5]} 13... Bxd5 {[%clk
0:02:59]} 14. c4 {[%clk 0:01:40.4]} 14... Be6 {[%clk 0:02:58.2]} 15. Nc5 {[%clk
0:01:37.1]} 15... Bc8 {[%clk 0:02:57.6]} 16. Ne4 {[%clk 0:01:24.4]} 16... Na6
{[%clk 0:02:51.3]} 17. c5 {[%clk 0:01:09.3]} 17... Be6 {[%clk 0:02:45.9]} 18. b3
{[%clk 0:01:00.5]} 18... Nb4 {[%clk 0:02:45.1]} 19. a3 {[%clk 0:00:50.9]} 19...
Nd5 {[%clk 0:02:40.8]} 20. Bd4 {[%clk 0:00:44.7]} 20... b6 {[%clk 0:02:33.5]}
21. Bc4 {[%clk 0:00:28.5]} 21... Rfd8 {[%clk 0:02:30.1]} 22. Bxg7 {[%clk
0:00:25.4]} 22... Kxg7 {[%clk 0:02:31]} 23. Rd4 {[%clk 0:00:23.7]} 23... Nf4
{[%clk 0:02:23.4]} 24. Rxd8 {[%clk 0:00:18.1]} 24... Rxd8 {[%clk 0:02:24.3]} 25.
Bxe6 {[%clk 0:00:18.1]} 25... Nxe6 {[%clk 0:02:25.1]} 26. cxb6 {[%clk
0:00:15.9]} 26... axb6 {[%clk 0:02:26]} 27. Rd1 {[%clk 0:00:15.2]} 27... Nd4
{[%clk 0:02:22.2]} 28. Kb2 {[%clk 0:00:15]} 28... f5 {[%clk 0:02:21.3]} 29. Nc3
{[%clk 0:00:14.2]} 29... Kf6 {[%clk 0:02:18.2]} 30. Ne2 {[%clk 0:00:12.2]} 30...
Ne6 {[%clk 0:02:18.5]} 31. Rxd8 {[%clk 0:00:11.9]} 31... Nxd8 {[%clk 0:02:19.4]}
32. Kc3 {[%clk 0:00:12.3]} 32... Ke5 {[%clk 0:02:19.3]} 33. Kd3 {[%clk
0:00:12.1]} 33... Nb7 {[%clk 0:02:19.2]} 34. b4 {[%clk 0:00:11.8]} 34... b5
{[%clk 0:02:18.5]} 35. f4+ {[%clk 0:00:10.8]} 35... Ke6 {[%clk 0:02:16.7]} 36.
Nd4+ {[%clk 0:00:10.3]} 36... Kd5 {[%clk 0:02:17.1]} 37. Ne2 {[%clk 0:00:09.8]}
37... Nd6 {[%clk 0:02:17.1]} 38. Nc3+ {[%clk 0:00:09.9]} 38... Ke6 {[%clk
0:02:17.7]} 39. Kd4 {[%clk 0:00:09.9]} 39... Nb7 {[%clk 0:02:12.7]} 40. g3
{[%clk 0:00:08.7]} 40... Kd6 {[%clk 0:02:12.7]} 41. h4 {[%clk 0:00:08.1]} 41...
Nd8 {[%clk 0:02:11.1]} 42. Kd3 {[%clk 0:00:08.1]} 42... Ne6 {[%clk 0:02:08.8]}
43. Ke3 {[%clk 0:00:08.3]} 43... Ng7 {[%clk 0:02:08]} 44. Kf3 {[%clk 0:00:07.2]}
44... Nh5 {[%clk 0:02:08.1]} 45. Kf2 {[%clk 0:00:06.9]} 45... Nf6 {[%clk
0:02:08.1]} 46. Kf3 {[%clk 0:00:03.5]} 46... Nd5 {[%clk 0:02:08.5]} 47. Ne2
{[%clk 0:00:03.6]} 47... Nb6 {[%clk 0:02:08.6]} 48. Nd4 {[%clk 0:00:03.5]} 48...
Nc4 {[%clk 0:02:07.7]} 49. Nb3 {[%clk 0:00:02.8]} 49... Nxa3 {[%clk 0:02:07.2]}
50. Na5 {[%clk 0:00:02.7]} 50... Nc2 {[%clk 0:02:05.7]} 51. Ke2 {[%clk
0:00:02.9]} 51... Nxb4 {[%clk 0:02:05.6]} 52. Kd2 {[%clk 0:00:03.2]} 52... Nd5
{[%clk 0:02:04.8]} 0-1

[Event "*** SCC Grand Prix: Titled Tuesday Blitz"]
[Site "Chess.com"]
[Date "2020.10.13"]
[Round "6"]
[White "Susal_De_Silva"]
[Black "OlympusMons95"]
[Result "1-0"]
[WhiteElo "2474"]
[BlackElo "2690"]
[TimeControl "180+1"]
[EndTime "11:06:00 PDT"]
[Termination "Susal_De_Silva won by resignation"]

1. e4 {[%clk 0:03:00.9]} 1... c5 {[%clk 0:02:59.1]} 2. Nf3 {[%clk 0:03:01.1]}
2... Nc6 {[%clk 0:02:59.3]} 3. Bb5 {[%clk 0:03:01.4]} 3... d6 {[%clk 0:02:57.7]}
4. O-O {[%clk 0:03:00.7]} 4... Bd7 {[%clk 0:02:57.8]} 5. Re1 {[%clk 0:03:01.3]}
5... a6 {[%clk 0:02:58]} 6. Bf1 {[%clk 0:03:01.9]} 6... e5 {[%clk 0:02:58.1]} 7.
c3 {[%clk 0:03:02.6]} 7... g5 {[%clk 0:02:58.7]} 8. g3 {[%clk 0:02:43.5]} 8...
g4 {[%clk 0:02:54.5]} 9. Nh4 {[%clk 0:02:43.5]} 9... h5 {[%clk 0:02:32.4]} 10.
Bg2 {[%clk 0:02:37.1]} 10... Bh6 {[%clk 0:02:27.9]} 11. d3 {[%clk 0:02:17.9]}
11... Bxc1 {[%clk 0:02:19.2]} 12. Qxc1 {[%clk 0:02:18.8]} 12... Qf6 {[%clk
0:02:19.6]} 13. Nd2 {[%clk 0:02:16]} 13... Nge7 {[%clk 0:02:19.2]} 14. Nc4
{[%clk 0:02:13.8]} 14... Ng6 {[%clk 0:02:03.8]} 15. Nf5 {[%clk 0:02:06.3]} 15...
Bxf5 {[%clk 0:01:55.6]} 16. exf5 {[%clk 0:02:07.2]} 16... Nge7 {[%clk 0:01:56]}
17. Qd2 {[%clk 0:01:46.5]} 17... O-O-O {[%clk 0:01:46.9]} 18. d4 {[%clk
0:01:38.7]} 18... cxd4 {[%clk 0:01:40.8]} 19. cxd4 {[%clk 0:01:39.6]} 19... Nxd4
{[%clk 0:01:40.9]} 20. Rac1 {[%clk 0:01:29.1]} 20... Kb8 {[%clk 0:01:40.7]} 21.
Bxb7 {[%clk 0:00:56.7]} 21... Kxb7 {[%clk 0:01:20]} 22. Qb4+ {[%clk 0:00:56.3]}
22... Nb5 {[%clk 0:01:19.8]} 23. a4 {[%clk 0:00:49.7]} 23... Nc6 {[%clk
0:01:18.4]} 24. Na5+ {[%clk 0:00:49.7]} 24... Nxa5 {[%clk 0:01:17.3]} 25. Qxa5
{[%clk 0:00:50.6]} 25... Rd7 {[%clk 0:00:23.8]} 26. axb5 {[%clk 0:00:48.7]}
26... d5 {[%clk 0:00:24.3]} 27. Rc6 {[%clk 0:00:46.1]} 1-0

[Event "*** SCC Grand Prix: Titled Tuesday Blitz"]
[Site "Chess.com"]
[Date "2020.10.13"]
[Round "6"]
[White "Gulkov_Igor"]
[Black "Ze-Pequeno"]
[Result "1-0"]
[WhiteElo "2459"]
[BlackElo "2170"]
[TimeControl "180+1"]
[EndTime "11:06:00 PDT"]
[Termination "Gulkov_Igor won by resignation"]

1. Nf3 {[%clk 0:03:00.9]} 1... Nf6 {[%clk 0:02:58.7]} 2. c4 {[%clk 0:02:58.9]}
2... c5 {[%clk 0:02:58.1]} 3. Nc3 {[%clk 0:02:58.5]} 3... e6 {[%clk 0:02:58]} 4.
g3 {[%clk 0:02:58.1]} 4... b6 {[%clk 0:02:57.8]} 5. Bg2 {[%clk 0:02:58.2]} 5...
Bb7 {[%clk 0:02:58.3]} 6. O-O {[%clk 0:02:58]} 6... Be7 {[%clk 0:02:58.7]} 7. d4
{[%clk 0:02:58.2]} 7... cxd4 {[%clk 0:02:58.7]} 8. Qxd4 {[%clk 0:02:58.7]} 8...
d6 {[%clk 0:02:57]} 9. Bg5 {[%clk 0:02:58.1]} 9... Nbd7 {[%clk 0:02:56.5]} 10.
Nb5 {[%clk 0:02:57.5]} 10... h6 {[%clk 0:02:40.7]} 11. Bxf6 {[%clk 0:02:49.3]}
11... Nxf6 {[%clk 0:02:38]} 12. Rfd1 {[%clk 0:02:46.5]} 12... O-O {[%clk
0:02:16.5]} 13. Nxd6 {[%clk 0:02:44.7]} 13... Bc6 {[%clk 0:02:08.1]} 14. Ne5
{[%clk 0:02:37.2]} 14... Bxg2 {[%clk 0:02:05.4]} 15. Kxg2 {[%clk 0:02:36.9]}
15... Qc7 {[%clk 0:02:03.3]} 16. Nb5 {[%clk 0:02:33.7]} 16... Qb7+ {[%clk
0:02:02.4]} 17. f3 {[%clk 0:02:33.3]} 17... a6 {[%clk 0:01:51.5]} 18. Nc3 {[%clk
0:02:32.4]} 18... Qc7 {[%clk 0:01:40.9]} 19. Nd3 {[%clk 0:01:04.1]} 19... Rac8
{[%clk 0:01:14]} 20. Rac1 {[%clk 0:00:55.9]} 20... Rfd8 {[%clk 0:01:07.4]} 21.
Qf4 {[%clk 0:00:55.4]} 21... Qxc4 {[%clk 0:00:52.8]} 22. Qxc4 {[%clk 0:00:53.2]}
22... Rxc4 {[%clk 0:00:53.7]} 23. Ne5 {[%clk 0:00:53.5]} 23... Rdc8 {[%clk
0:00:28.2]} 24. Nxc4 {[%clk 0:00:43.1]} 24... Rxc4 {[%clk 0:00:26.7]} 25. Ne4
{[%clk 0:00:42]} 25... Rb4 {[%clk 0:00:22.9]} 26. Nxf6+ {[%clk 0:00:40.8]} 26...
Bxf6 {[%clk 0:00:23]} 27. b3 {[%clk 0:00:41.5]} 1-0

[Event "*** SCC Grand Prix: Titled Tuesday Blitz"]
[Site "Chess.com"]
[Date "2020.10.13"]
[Round "6"]
[White "GM_Levan_Pantsulaia"]
[Black "Ginger_GM"]
[Result "1-0"]
[WhiteElo "2815"]
[BlackElo "2604"]
[TimeControl "180+1"]
[EndTime "11:06:05 PDT"]
[Termination "GM_Levan_Pantsulaia won by resignation"]

1. Nf3 {[%clk 0:03:00.9]} 1... f5 {[%clk 0:02:59.5]} 2. d3 {[%clk 0:02:57.6]}
2... Nc6 {[%clk 0:02:59]} 3. g3 {[%clk 0:02:56.6]} 3... e5 {[%clk 0:02:58]} 4.
Bg2 {[%clk 0:02:56.5]} 4... Nf6 {[%clk 0:02:57.8]} 5. O-O {[%clk 0:02:56.3]}
5... d6 {[%clk 0:02:57.9]} 6. c4 {[%clk 0:02:55.1]} 6... Be7 {[%clk 0:02:57.1]}
7. Nc3 {[%clk 0:02:52.2]} 7... O-O {[%clk 0:02:56.9]} 8. Rb1 {[%clk 0:02:51.2]}
8... Qe8 {[%clk 0:02:56.6]} 9. b4 {[%clk 0:02:42.5]} 9... Qh5 {[%clk 0:02:56.3]}
10. b5 {[%clk 0:02:38.1]} 10... Nd8 {[%clk 0:02:55.4]} 11. Nd5 {[%clk
0:02:32.7]} 11... Nxd5 {[%clk 0:02:54.4]} 12. cxd5 {[%clk 0:02:33.6]} 12... Nf7
{[%clk 0:02:54.4]} 13. Qc2 {[%clk 0:02:26.7]} 13... Bd8 {[%clk 0:02:51.8]} 14.
a4 {[%clk 0:02:19.8]} 14... g5 {[%clk 0:02:45.6]} 15. Nd2 {[%clk 0:02:18.5]}
15... f4 {[%clk 0:02:28.5]} 16. Ne4 {[%clk 0:02:18.4]} 16... Bh3 {[%clk
0:02:22.5]} 17. f3 {[%clk 0:02:13.7]} 17... Bxg2 {[%clk 0:02:00.7]} 18. Kxg2
{[%clk 0:02:14.6]} 18... Qg6 {[%clk 0:02:00.1]} 19. g4 {[%clk 0:02:05.9]} 19...
h5 {[%clk 0:01:53.6]} 20. h3 {[%clk 0:02:05.5]} 20... Kg7 {[%clk 0:01:44.2]} 21.
Bd2 {[%clk 0:02:03.2]} 21... Rh8 {[%clk 0:01:42.5]} 22. Rh1 {[%clk 0:01:58.9]}
22... Nh6 {[%clk 0:01:07.3]} 23. a5 {[%clk 0:01:57.7]} 23... Ng8 {[%clk
0:01:04.8]} 24. a6 {[%clk 0:01:50.9]} 24... b6 {[%clk 0:01:00]} 25. Qc6 {[%clk
0:01:46]} 25... Rb8 {[%clk 0:01:00.1]} 26. Qb7 {[%clk 0:01:44.7]} 26... Rxb7
{[%clk 0:00:22.2]} 27. axb7 {[%clk 0:01:45.6]} 27... Ne7 {[%clk 0:00:21.5]} 28.
b8=Q {[%clk 0:01:43.5]} 28... Nxd5 {[%clk 0:00:21.7]} 29. Qb7 {[%clk 0:01:40.5]}
29... Qe6 {[%clk 0:00:21.5]} 30. Qc6 {[%clk 0:01:38.2]} 30... Ne7 {[%clk
0:00:18.2]} 31. Qc2 {[%clk 0:01:34.4]} 31... Ng6 {[%clk 0:00:18.1]} 32. Be1
{[%clk 0:01:31.6]} 32... d5 {[%clk 0:00:17.8]} 33. Nd2 {[%clk 0:01:31.8]} 33...
Be7 {[%clk 0:00:14.6]} 34. Bf2 {[%clk 0:01:27.6]} 34... Bd6 {[%clk 0:00:08.8]}
35. Ra1 {[%clk 0:01:25.6]} 35... Bc5 {[%clk 0:00:04.4]} 36. Bxc5 {[%clk
0:01:22.4]} 36... Nh4+ {[%clk 0:00:04.5]} 37. Kf2 {[%clk 0:01:20.8]} 37... bxc5
{[%clk 0:00:04.9]} 38. Qxc5 {[%clk 0:01:20.7]} 38... hxg4 {[%clk 0:00:05.8]} 39.
hxg4 {[%clk 0:01:20.4]} 1-0

[Event "*** SCC Grand Prix: Titled Tuesday Blitz"]
[Site "Chess.com"]
[Date "2020.10.13"]
[Round "6"]
[White "Morshynska"]
[Black "Obito24"]
[Result "0-1"]
[WhiteElo "2238"]
[BlackElo "2510"]
[TimeControl "180+1"]
[EndTime "11:06:05 PDT"]
[Termination "Obito24 won by resignation"]

1. Nf3 {[%clk 0:03:00.9]} 1... d5 {[%clk 0:02:58.9]} 2. g3 {[%clk 0:03:01.8]}
2... e6 {[%clk 0:02:58.2]} 3. Bg2 {[%clk 0:03:02.7]} 3... Nf6 {[%clk 0:02:58]}
4. O-O {[%clk 0:03:03.6]} 4... Be7 {[%clk 0:02:58.4]} 5. d4 {[%clk 0:03:04.3]}
5... O-O {[%clk 0:02:59.2]} 6. c4 {[%clk 0:03:05.2]} 6... b6 {[%clk 0:02:59]} 7.
Nbd2 {[%clk 0:02:58.4]} 7... Ba6 {[%clk 0:02:58.1]} 8. Ne5 {[%clk 0:02:51.9]}
8... c5 {[%clk 0:02:53.8]} 9. cxd5 {[%clk 0:02:31.6]} 9... exd5 {[%clk
0:02:48.6]} 10. Re1 {[%clk 0:02:14.4]} 10... Bb7 {[%clk 0:02:40.2]} 11. b3
{[%clk 0:01:43.8]} 11... Nc6 {[%clk 0:02:33.3]} 12. Nxc6 {[%clk 0:01:33.2]}
12... Bxc6 {[%clk 0:02:34.2]} 13. Ba3 {[%clk 0:01:25.1]} 13... cxd4 {[%clk
0:02:27.1]} 14. Bxe7 {[%clk 0:01:26]} 14... Qxe7 {[%clk 0:02:27.2]} 15. Nf3
{[%clk 0:01:24.2]} 15... d3 {[%clk 0:02:18.7]} 16. Qxd3 {[%clk 0:01:14.4]} 16...
Rfd8 {[%clk 0:02:09.3]} 17. Rac1 {[%clk 0:01:05.3]} 17... Be8 {[%clk 0:02:05.5]}
18. Nd4 {[%clk 0:00:57]} 18... g6 {[%clk 0:01:52.1]} 19. Nc6 {[%clk 0:00:54.5]}
19... Bxc6 {[%clk 0:01:48.4]} 20. Rxc6 {[%clk 0:00:55.4]} 20... Kg7 {[%clk
0:01:48.3]} 21. Rec1 {[%clk 0:00:55.5]} 21... Rd7 {[%clk 0:01:42.6]} 22. Qd4
{[%clk 0:00:54.9]} 22... Rad8 {[%clk 0:01:41.5]} 23. b4 {[%clk 0:00:52.5]} 23...
h5 {[%clk 0:01:39.2]} 24. Bh3 {[%clk 0:00:43.9]} 24... Rd6 {[%clk 0:01:37.2]}
25. Rc7 {[%clk 0:00:43.2]} 25... Qe4 {[%clk 0:01:33.3]} 26. Qxe4 {[%clk
0:00:31.9]} 26... dxe4 {[%clk 0:01:30.4]} 27. Rxa7 {[%clk 0:00:31.1]} 27... Nd5
{[%clk 0:01:28]} 28. a3 {[%clk 0:00:25.1]} 28... e3 {[%clk 0:01:20.9]} 29. Rc8
{[%clk 0:00:20.4]} 29... exf2+ {[%clk 0:01:17.6]} 30. Kxf2 {[%clk 0:00:20.3]}
30... Rf6+ {[%clk 0:01:17]} 31. Ke1 {[%clk 0:00:16.3]} 31... Rdd6 {[%clk
0:01:16.4]} 32. Rb8 {[%clk 0:00:09.5]} 32... Ne3 {[%clk 0:01:16]} 0-1

[Event "*** SCC Grand Prix: Titled Tuesday Blitz"]
[Site "Chess.com"]
[Date "2020.10.13"]
[Round "6"]
[White "boasovietica"]
[Black "FMalexhdez"]
[Result "0-1"]
[WhiteElo "2402"]
[BlackElo "2275"]
[TimeControl "180+1"]
[EndTime "11:06:09 PDT"]
[Termination "FMalexhdez won on time"]

1. e4 {[%clk 0:03:00.9]} 1... c5 {[%clk 0:02:59]} 2. Nf3 {[%clk 0:03:00.1]} 2...
d6 {[%clk 0:02:59.5]} 3. d4 {[%clk 0:02:59.9]} 3... cxd4 {[%clk 0:03:00.2]} 4.
Nxd4 {[%clk 0:03:00.8]} 4... Nf6 {[%clk 0:03:00.4]} 5. Nc3 {[%clk 0:03:01.1]}
5... a6 {[%clk 0:03:01.3]} 6. Be3 {[%clk 0:03:01.1]} 6... e5 {[%clk 0:03:01.9]}
7. Nf3 {[%clk 0:03:01.4]} 7... h6 {[%clk 0:02:55.1]} 8. Nd2 {[%clk 0:03:01.2]}
8... Be6 {[%clk 0:02:52.8]} 9. Nc4 {[%clk 0:03:00.4]} 9... b5 {[%clk 0:02:42.8]}
10. Nb6 {[%clk 0:02:38.8]} 10... Ra7 {[%clk 0:02:42.7]} 11. Nbd5 {[%clk
0:02:04.3]} 11... Rb7 {[%clk 0:02:42.2]} 12. Nxf6+ {[%clk 0:01:57.7]} 12... Qxf6
{[%clk 0:02:41.5]} 13. Nd5 {[%clk 0:01:58]} 13... Qd8 {[%clk 0:02:38.8]} 14. Be2
{[%clk 0:01:48.6]} 14... Nd7 {[%clk 0:02:33.8]} 15. O-O {[%clk 0:01:39.2]} 15...
Nc5 {[%clk 0:02:32]} 16. Bxc5 {[%clk 0:01:29.7]} 16... dxc5 {[%clk 0:02:30.6]}
17. a4 {[%clk 0:01:25.9]} 17... c4 {[%clk 0:02:11.7]} 18. axb5 {[%clk
0:01:19.5]} 18... axb5 {[%clk 0:02:09.9]} 19. b3 {[%clk 0:01:07.1]} 19... cxb3
{[%clk 0:02:06.9]} 20. cxb3 {[%clk 0:00:34.4]} 20... Bc5 {[%clk 0:02:06.3]} 21.
Qc2 {[%clk 0:00:21.1]} 21... Bd4 {[%clk 0:02:06.2]} 22. Rac1 {[%clk 0:00:09.4]}
22... O-O {[%clk 0:02:03.7]} 23. Nc7 {[%clk 0:00:09.5]} 23... Bxb3 {[%clk
0:01:52.4]} 24. Qxb3 {[%clk 0:00:08.3]} 24... Rxc7 {[%clk 0:01:52.4]} 25. Rxc7
{[%clk 0:00:08.3]} 25... Qxc7 {[%clk 0:01:52.3]} 26. Bxb5 {[%clk 0:00:08]} 26...
Rb8 {[%clk 0:01:48.1]} 27. Qd5 {[%clk 0:00:07.4]} 27... Qc2 {[%clk 0:01:26.6]}
28. h3 {[%clk 0:00:02.5]} 28... Rc8 {[%clk 0:01:10.3]} 29. Bd7 {[%clk
0:00:01.7]} 29... Rd8 {[%clk 0:00:56.2]} 0-1

[Event "*** SCC Grand Prix: Titled Tuesday Blitz"]
[Site "Chess.com"]
[Date "2020.10.13"]
[Round "6"]
[White "realmadridtv"]
[Black "SophieNikoladze"]
[Result "1-0"]
[WhiteElo "2412"]
[BlackElo "2252"]
[TimeControl "180+1"]
[EndTime "11:06:09 PDT"]
[Termination "realmadridtv won by checkmate"]

1. e4 {[%clk 0:03:00.9]} 1... d6 {[%clk 0:02:59.8]} 2. d4 {[%clk 0:03:00.6]}
2... Nf6 {[%clk 0:02:59.9]} 3. Nc3 {[%clk 0:02:58.9]} 3... Nbd7 {[%clk
0:02:58.9]} 4. f4 {[%clk 0:02:57.6]} 4... e5 {[%clk 0:02:58.8]} 5. Nf3 {[%clk
0:02:58.3]} 5... exd4 {[%clk 0:02:56.4]} 6. Nxd4 {[%clk 0:02:58.1]} 6... Be7
{[%clk 0:02:56.4]} 7. Bc4 {[%clk 0:02:55.6]} 7... Nc5 {[%clk 0:02:55.2]} 8. e5
{[%clk 0:02:46.7]} 8... dxe5 {[%clk 0:02:52.9]} 9. fxe5 {[%clk 0:02:47.6]} 9...
Ng4 {[%clk 0:02:49.9]} 10. e6 {[%clk 0:02:42.1]} 10... Ne5 {[%clk 0:02:34.5]}
11. exf7+ {[%clk 0:02:37.7]} 11... Kf8 {[%clk 0:02:33.2]} 12. Be2 {[%clk
0:02:31.9]} 12... Ne6 {[%clk 0:02:27.1]} 13. Be3 {[%clk 0:02:22.1]} 13... Nxf7
{[%clk 0:02:07.9]} 14. O-O {[%clk 0:02:14.8]} 14... Bf6 {[%clk 0:02:06.8]} 15.
Nf5 {[%clk 0:01:38.6]} 15... Qxd1 {[%clk 0:02:02.2]} 16. Raxd1 {[%clk
0:01:39.5]} 16... a6 {[%clk 0:01:40.4]} 17. Bc4 {[%clk 0:01:35.3]} 17... b5
{[%clk 0:01:38.3]} 18. Bd5 {[%clk 0:01:35.6]} 18... Rb8 {[%clk 0:01:24.3]} 19.
Ba7 {[%clk 0:01:34.9]} 19... Rb7 {[%clk 0:01:24.4]} 20. Bxb7 {[%clk 0:01:33.7]}
20... Bxb7 {[%clk 0:01:24.2]} 21. Rde1 {[%clk 0:01:31.4]} 21... Bc8 {[%clk
0:01:21.1]} 22. Nd5 {[%clk 0:01:31.5]} 22... Bd8 {[%clk 0:01:08.9]} 23. Nb4
{[%clk 0:01:19.2]} 23... g6 {[%clk 0:01:05.2]} 24. Nd4 {[%clk 0:01:17.3]} 24...
Nxd4 {[%clk 0:00:48.1]} 25. Bxd4 {[%clk 0:01:18.2]} 25... Rg8 {[%clk 0:00:47.8]}
26. Nd5 {[%clk 0:01:06.9]} 26... Bf5 {[%clk 0:00:28.9]} 27. Nf6 {[%clk 0:00:42]}
27... c5 {[%clk 0:00:17]} 28. Nxh7# {[%clk 0:00:41]} 1-0

[Event "*** SCC Grand Prix: Titled Tuesday Blitz"]
[Site "Chess.com"]
[Date "2020.10.13"]
[Round "6"]
[White "Ariadna_Atreides"]
[Black "MalyDominator"]
[Result "1-0"]
[WhiteElo "2055"]
[BlackElo "2354"]
[TimeControl "180+1"]
[EndTime "11:06:14 PDT"]
[Termination "Ariadna_Atreides won by resignation"]

1. d4 {[%clk 0:03:00.9]} 1... Nf6 {[%clk 0:02:59.4]} 2. Nf3 {[%clk 0:03:00.4]}
2... g6 {[%clk 0:02:58.3]} 3. c3 {[%clk 0:02:56.2]} 3... Bg7 {[%clk 0:02:50.7]}
4. Bg5 {[%clk 0:02:55.2]} 4... O-O {[%clk 0:02:50.1]} 5. Nbd2 {[%clk 0:02:51.9]}
5... d5 {[%clk 0:02:50]} 6. Bxf6 {[%clk 0:02:28.7]} 6... Bxf6 {[%clk 0:02:49.3]}
7. e4 {[%clk 0:02:29.6]} 7... dxe4 {[%clk 0:02:46.9]} 8. Nxe4 {[%clk 0:02:30.5]}
8... Bg7 {[%clk 0:02:45.8]} 9. h4 {[%clk 0:02:25.3]} 9... h5 {[%clk 0:02:42.3]}
10. Bd3 {[%clk 0:02:21]} 10... Nd7 {[%clk 0:02:42.1]} 11. Qc2 {[%clk 0:02:19.2]}
11... e5 {[%clk 0:02:41.8]} 12. dxe5 {[%clk 0:02:14.5]} 12... Nxe5 {[%clk
0:02:40.7]} 13. Nxe5 {[%clk 0:02:13.1]} 13... Bxe5 {[%clk 0:02:40.1]} 14. O-O-O
{[%clk 0:02:12.6]} 14... c6 {[%clk 0:02:31.9]} 15. Ng5 {[%clk 0:02:07.3]} 15...
Qf6 {[%clk 0:02:24.2]} 16. Kb1 {[%clk 0:01:45.1]} 16... a5 {[%clk 0:02:15.1]}
17. Rhe1 {[%clk 0:01:40.3]} 17... b5 {[%clk 0:02:02.9]} 18. Re2 {[%clk
0:01:00.6]} 18... Qg7 {[%clk 0:01:41.2]} 19. Rde1 {[%clk 0:00:59.5]} 19... Bf6
{[%clk 0:01:41.2]} 20. Re8 {[%clk 0:00:45]} 20... Bd7 {[%clk 0:01:32.2]} 21.
Rxa8 {[%clk 0:00:29.8]} 21... Rxa8 {[%clk 0:01:31.1]} 22. g3 {[%clk 0:00:28.1]}
22... b4 {[%clk 0:01:09.4]} 23. cxb4 {[%clk 0:00:17.1]} 23... Rb8 {[%clk
0:01:02.1]} 24. Bc4 {[%clk 0:00:14.6]} 24... Rxb4 {[%clk 0:00:47.8]} 25. Bxf7+
{[%clk 0:00:07.4]} 25... Kf8 {[%clk 0:00:44.6]} 26. Qc5+ {[%clk 0:00:04]} 1-0

[Event "*** SCC Grand Prix: Titled Tuesday Blitz"]
[Site "Chess.com"]
[Date "2020.10.13"]
[Round "6"]
[White "Azerichess"]
[Black "Aleksey_Sorokin"]
[Result "1-0"]
[WhiteElo "2957"]
[BlackElo "2833"]
[TimeControl "180+1"]
[EndTime "11:06:15 PDT"]
[Termination "Azerichess won by resignation"]

1. d4 {[%clk 0:03:00.9]} 1... Nf6 {[%clk 0:03:00.2]} 2. c4 {[%clk 0:03:01.4]}
2... g6 {[%clk 0:03:00.4]} 3. Nc3 {[%clk 0:03:00.4]} 3... d5 {[%clk 0:03:00.5]}
4. Bg5 {[%clk 0:02:56.9]} 4... Ne4 {[%clk 0:02:58.8]} 5. Bf4 {[%clk 0:02:48.6]}
5... Nxc3 {[%clk 0:02:48.6]} 6. bxc3 {[%clk 0:02:49.5]} 6... dxc4 {[%clk
0:02:48.9]} 7. e3 {[%clk 0:02:47.8]} 7... Be6 {[%clk 0:02:40.6]} 8. Nh3 {[%clk
0:02:47.9]} 8... Nd7 {[%clk 0:02:23.4]} 9. Ng5 {[%clk 0:02:40.9]} 9... Bd5
{[%clk 0:02:23.3]} 10. e4 {[%clk 0:02:41]} 10... h6 {[%clk 0:02:23]} 11. exd5
{[%clk 0:02:40.2]} 11... hxg5 {[%clk 0:02:23.1]} 12. Bxg5 {[%clk 0:02:41.1]}
12... Nb6 {[%clk 0:02:18.7]} 13. Bxc4 {[%clk 0:02:38.9]} 13... Nxc4 {[%clk
0:02:14.1]} 14. Qa4+ {[%clk 0:02:38.6]} 14... c6 {[%clk 0:02:14.3]} 15. Qxc4
{[%clk 0:02:35.2]} 15... Qxd5 {[%clk 0:02:14.2]} 16. Qxd5 {[%clk 0:02:35.1]}
16... cxd5 {[%clk 0:02:15.1]} 17. a4 {[%clk 0:02:34.9]} 17... Kd7 {[%clk
0:02:11.5]} 18. Kd2 {[%clk 0:02:32]} 18... e6 {[%clk 0:02:07.9]} 19. h4 {[%clk
0:02:27]} 19... Bd6 {[%clk 0:01:50.4]} 20. g3 {[%clk 0:02:24.3]} 20... f5 {[%clk
0:01:44.5]} 21. a5 {[%clk 0:02:20.3]} 21... b6 {[%clk 0:01:40]} 22. Rhb1 {[%clk
0:02:15.9]} 22... Bc7 {[%clk 0:01:37.8]} 23. Bf6 {[%clk 0:02:04.5]} 23... Rhf8
{[%clk 0:01:31.4]} 24. Be5 {[%clk 0:02:04.7]} 24... Bxe5 {[%clk 0:01:29.8]} 25.
dxe5 {[%clk 0:02:05.6]} 25... Kc6 {[%clk 0:01:29.5]} 26. Ke3 {[%clk 0:02:02.5]}
26... b5 {[%clk 0:01:26.6]} 27. a6 {[%clk 0:01:59.5]} 27... Kb6 {[%clk
0:01:11.3]} 28. Kf4 {[%clk 0:01:51.1]} 28... Rac8 {[%clk 0:01:06.9]} 29. Rb3
{[%clk 0:01:47.3]} 29... Rc4+ {[%clk 0:01:02.5]} 30. Kg5 {[%clk 0:01:46.7]}
30... Rg4+ {[%clk 0:01:02.2]} 31. Kh6 {[%clk 0:01:47.2]} 31... f4 {[%clk
0:00:58.2]} 32. Rab1 {[%clk 0:01:41.8]} 32... fxg3 {[%clk 0:00:48.9]} 33. fxg3
{[%clk 0:01:42.7]} 33... Rxg3 {[%clk 0:00:43.2]} 34. Rxb5+ {[%clk 0:01:42.6]}
34... Kc6 {[%clk 0:00:43]} 35. Rb8 {[%clk 0:01:34.5]} 35... Rf5 {[%clk
0:00:16.8]} 36. R1b7 {[%clk 0:01:30.5]} 36... d4 {[%clk 0:00:10.4]} 37. cxd4
{[%clk 0:01:28.1]} 37... Kd5 {[%clk 0:00:10.2]} 38. Rxa7 {[%clk 0:01:25]} 38...
g5 {[%clk 0:00:10.4]} 39. Rd7+ {[%clk 0:01:23.5]} 39... Ke4 {[%clk 0:00:10.7]}
40. a7 {[%clk 0:01:23.5]} 40... gxh4 {[%clk 0:00:07.2]} 41. a8=Q+ {[%clk
0:01:23]} 41... Kf4 {[%clk 0:00:07.8]} 42. Rf8 {[%clk 0:01:20.8]} 1-0